fUST/lending_fUST_20240616
["ID","MTS","AMOUNT","RATE_DAILY","PERIOD"]
[329592324,1718476253317,-431.10254768,0.0001475,2]
[329592325,1718476253330,-153.0,0.000148,2]
[329592326,1718476253342,-155.01550155,0.0001485,2]
[329592327,1718476253355,-153.0,0.00014878,2]
[329592328,1718476253377,-153.0,0.000149,2]
[329592329,1718476253388,-306.0,0.000149,2]
[329592330,1718476253398,-282.68764268,0.00014998,2]
[329592331,1718476253409,-441.44558995,0.00014998,2]
[329592332,1718476253420,-1984.62608834,0.00014998,2]
[329592333,1718476253431,-309.88066189,0.00014999,2]
[329592335,1718476253448,-5584.24273319,0.00015,2]
[329592437,1718477435844,-156.31130542,9.952e-05,2]
[329592440,1718477435888,-155.01395126,9.953e-05,2]
[329592441,1718477435904,-272.7344237,9.953e-05,2]
[329592443,1718477435918,-456.91543891,9.954e-05,2]
[329592445,1718477435931,-220.25,0.00010959,2]
[329592447,1718477435966,-1145.75,0.00010959,2]
[329592449,1718477435981,-954.8,0.00010959,2]
[329592451,1718477435993,-795.66,0.00010959,2]
[329592453,1718477436005,-663.05,0.00010959,2]
[329592455,1718477436025,-552.54,0.00010959,2]
[329592457,1718477436037,-460.45,0.00010959,2]
[329592459,1718477436050,-383.71,0.00010959,2]
[329592461,1718477436063,-319.76,0.00010959,2]
[329592462,1718477436085,-10172.9039785,0.00011731,2]
[329592560,1718477447856,-14727.0960215,0.00011731,2]
[329592561,1718477447881,-1976.27387468,0.00013599,2]
[329592562,1718477447894,-231.394725,0.00013699,2]
[329592563,1718477447905,-951.5803795,0.00013699,2]
[329592564,1718477447932,-798.52504052,0.00013908,4]
[329592565,1718477447943,-5359.3543441,0.00014847,2]
[329592566,1718477447962,-156.04844692,0.00014849,3]
[329592567,1718477447974,-155.01395126,0.0001485,2]
[329592568,1718477448014,-344.88203816,0.00014898,2]
[329592569,1718477448024,-3002.60018185,0.00014998,2]
[329592570,1718477450653,-1409.59,0.00014998,2]
[329592571,1718477450676,-743.76801667,0.00014998,2]
[329592572,1718477450691,-1719.16669149,0.00014998,2]
[329592573,1718477450716,-166.34356132,0.00014998,2]
[329592574,1718477450732,-813.80353298,0.00014998,2]
[329592575,1718477450748,-203.4767354,0.00014998,2]
[329592576,1718477450764,-530.20911563,0.00014998,2]
[329592577,1718477450775,-159.04132765,0.00014998,2]
[329592578,1718477450785,-411.5321918,0.00014998,2]
[329592579,1718477450796,-189.13190387,0.00014998,2]
[329592580,1718477450810,-659.92725719,0.00014998,2]
[329592581,1718477450821,-1063.23046856,0.00014998,2]
[329592582,1718477450853,-9421.89378979,0.00014999,2]
[329592583,1718477450867,-300.08522441,0.00014999,2]
[329592584,1718477450879,-27323.16321089,0.00015,2]
[329592585,1718477450896,-1303.29757194,0.00015,2]
[329592586,1718477450908,-1101.53149693,0.00015,2]
[329592587,1718477450920,-946.56236145,0.00015,2]
[329592588,1718477450930,-2413.03400432,0.00015,2]
[329592589,1718477450942,-2819.17925605,0.00015,2]
[329592590,1718477450953,-1692.62660858,0.00015,2]
[329592591,1718477450964,-26137.13563794,0.00015,2]
[329592592,1718477450978,-5623.44912089,0.00015,2]
[329592593,1718477451007,-620.33566468,0.00015,2]
[329592594,1718477451021,-2349.08193611,0.00015,2]
[329592595,1718477451032,-6942.49281136,0.00015,2]
[329592596,1718477451045,-2096.53889493,0.00015,2]
[329592597,1718477451204,-16200.27458094,0.00015,2]
[329592598,1718477451231,-155.01550155,0.00015,2]
[329592599,1718477451255,-292.19306968,0.00015,2]
[329592600,1718477451266,-151.0,0.00015,2]
[329592601,1718477451278,-151.0,0.00015,2]
[329592602,1718477451294,-151.199888,0.00015,2]
[329592603,1718477451308,-151.0,0.00015,2]
[329592604,1718477451323,-151.0,0.00015,2]
[329592605,1718477451341,-6942.49281136,0.00015,2]
[329592606,1718477451352,-168.543825,0.00015,2]
[329592607,1718477451366,-168.543825,0.00015,2]
[329592608,1718477451380,-168.543825,0.00015,2]
[329592609,1718477451391,-168.543825,0.00015,2]
[329592610,1718477451402,-168.543825,0.00015,2]
[329592611,1718477451438,-168.543825,0.00015,2]
[329592612,1718477451464,-151.0,0.00015,2]
[329592613,1718477451476,-151.0,0.00015,2]
[329592614,1718477451487,-151.0,0.00015,2]
[329592615,1718477451499,-153.303156,0.00015,2]
[329592616,1718477451513,-151.0,0.00015,2]
[329592617,1718477451526,-151.0,0.00015,2]
[329592618,1718477451541,-237.84203,0.00015,2]
[329592619,1718477451559,-151.0,0.00015,2]
[329592620,1718477451571,-171.407289,0.00015,2]
[329592621,1718477451593,-151.0,0.00015,2]
[329592622,1718477451607,-151.0,0.00015,2]
[329592623,1718477451617,-151.0,0.00015,2]
[329592624,1718477451628,-151.0,0.00015,2]
[329592625,1718477451655,-151.0,0.00015,2]
[329592626,1718477451666,-151.0,0.00015,2]
[329592627,1718477451678,-401.720488,0.00015,2]
[329592628,1718477451691,-401.720488,0.00015,2]
[329592629,1718477451702,-401.720488,0.00015,2]
[329592630,1718477451712,-401.720488,0.00015,2]
[329592631,1718477451729,-401.720488,0.00015,2]
[329592632,1718477451742,-401.720488,0.00015,2]
[329592633,1718477451763,-153.824729,0.00015,2]
[329592634,1718477451777,-1000.0,0.00015,2]
[329592635,1718477451795,-411.731351,0.00015,2]
[329592636,1718477451816,-151.0,0.00015,2]
[329592637,1718477451829,-151.0,0.00015,2]
[329592638,1718477451843,-151.0,0.00015,2]
[329592639,1718477451856,-151.0,0.00015,2]
[329592640,1718477451868,-151.3196,0.00015,2]
[329592641,1718477451881,-151.0,0.00015,2]
[329592642,1718477451908,-151.0,0.00015,2]
[329592643,1718477451944,-151.0,0.00015,2]
[329592644,1718477451970,-151.0,0.00015,2]
[329592645,1718477452009,-151.0,0.00015,2]
[329592646,1718477452027,-151.0,0.00015,2]
[329592647,1718477452045,-151.0,0.00015,2]
[329592648,1718477452069,-151.0,0.00015,2]
[329592649,1718477452087,-151.0,0.00015,2]
[329592650,1718477452124,-151.0,0.00015,2]
[329592651,1718477452138,-151.0,0.00015,2]
[329592652,1718477452154,-151.0,0.00015,2]
[329592653,1718477452176,-151.0,0.00015,2]
[329592654,1718477452195,-151.0,0.00015,2]
[329592655,1718477452213,-151.0,0.00015,2]
[329592656,1718477452242,-151.0,0.00015,2]
[329592657,1718477452269,-151.0,0.00015,2]
[329592658,1718477452281,-151.0,0.00015,2]
[329592659,1718477452292,-167.913483,0.00015,2]
[329592660,1718477452307,-167.913483,0.00015,2]
[329592661,1718477452321,-167.913483,0.00015,2]
[329592662,1718477452343,-167.913483,0.00015,2]
[329592663,1718477452373,-167.913483,0.00015,2]
[329592664,1718477452421,-167.913483,0.00015,2]
[329592665,1718477452436,-151.0,0.00015,2]
[329592666,1718477452474,-172.132112,0.00015,2]
[329592667,1718477452491,-151.0,0.00015,2]
[329592668,1718477452505,-151.0,0.00015,2]
[329592669,1718477452528,-151.0,0.00015,2]
[329592670,1718477452541,-151.0,0.00015,2]
[329592671,1718477452574,-151.0,0.00015,2]
[329592672,1718477452587,-151.0,0.00015,2]
[329592673,1718477452613,-151.0,0.00015,2]
[329592674,1718477452629,-151.0,0.00015,2]
[329592675,1718477452645,-151.0,0.00015,2]
[329592676,1718477452658,-151.0,0.00015,2]
[329592677,1718477452670,-151.0,0.00015,2]
[329592678,1718477452681,-151.0,0.00015,2]
[329592679,1718477452705,-151.0,0.00015,2]
[329592680,1718477452726,-151.0,0.00015,2]
[329592681,1718477452745,-224.265466,0.00015,2]
[329592682,1718477452757,-5163.12502038,0.00015142,2]
[329592683,1718477452774,-151.0,0.00015199,2]
[329592684,1718477452792,-151.0,0.00015199,2]
[329592685,1718477452828,-151.0,0.00015199,2]
[329592686,1718477452854,-344.88203812,0.00015249,2]
[329592687,1718477452866,-151.0,0.00015271,2]
[329592688,1718477452888,-151.0,0.00015271,2]
[329592689,1718477452904,-157.870188,0.00015271,2]
[329592690,1718477452956,-151.0,0.00015271,2]
[329592692,1718477452988,-190.854964,0.00015271,2]
[329592694,1718477453006,-151.0,0.00015271,2]
[329592696,1718477453029,-167.913483,0.00015271,2]
[329592698,1718477453047,-167.913483,0.00015271,2]
[329592699,1718477453076,-401.720488,0.00015316,2]
[329592700,1718477453112,-401.720488,0.00015316,2]
[329592701,1718477453130,-692.86602494,0.00015544,2]
[329592702,1718477453157,-344.88203812,0.00015599,2]
[329592703,1718477453200,-489.64646748,0.000156,2]
[329592704,1718477453233,-344.88203812,0.0001595,2]
[329592705,1718477453287,-500.0,0.00016064,2]
[329592706,1718477453300,-1750.0,0.00016064,2]
[329592707,1718477453325,-168.543825,0.00016164,2]
[329592708,1718477453337,-168.543825,0.00016164,2]
[329592709,1718477453351,-166.666666,0.00016164,2]
[329592710,1718477453376,-344.88203812,0.000163,2]
[329592711,1718477453390,-151.0,0.00016338,2]
[329592712,1718477453401,-151.0,0.00016338,2]
[329592713,1718477453422,-151.0,0.00016338,2]
[329592714,1718477453434,-151.0,0.00016338,2]
[329592715,1718477453452,-167.913483,0.00016338,2]
[329592716,1718477453462,-167.913483,0.00016338,2]
[329592717,1718477453500,-2000.0,0.00016338,2]
[329592718,1718477453512,-64434.27536404,0.000164,2]
[329592719,1718477453525,-168.543825,0.000164,2]
[329592720,1718477453541,-168.543825,0.000164,2]
[329592721,1718477453555,-401.720488,0.000164,2]
[329592722,1718477453570,-401.720488,0.000164,2]
[329592723,1718477453587,-151.0,0.000164,2]
[329592724,1718477453598,-151.0,0.000164,2]
[329592725,1718477453629,-245.470752,0.000164,2]
[329592726,1718477453644,-151.0,0.000164,2]
[329592727,1718477453659,-167.913483,0.000164,2]
[329592728,1718477453670,-167.913483,0.000164,2]
[329592729,1718477453683,-151.0,0.000164,2]
[329592730,1718477453696,-284.387896,0.000164,2]
[329592731,1718477453710,-11458.52214763,0.00016432,2]
[329592732,1718477453727,-168.543825,0.00016432,2]
[329592733,1718477453748,-168.543825,0.00016432,2]
[329592734,1718477453761,-401.720488,0.00016432,2]
[329592735,1718477453774,-401.720488,0.00016432,2]
[329592736,1718477453784,-225.384911,0.00016432,2]
[329592737,1718477453794,-151.0,0.00016432,2]
[329592738,1718477453816,-270.429236,0.00016432,2]
[329592739,1718477453826,-167.913483,0.00016432,2]
[329592740,1718477453838,-167.913483,0.00016432,2]
[329592741,1718477453850,-151.0,0.00016432,2]
[329592742,1718477453861,-500.0,0.00016438,2]
[329592743,1718477453872,-500.0,0.00016438,2]
[329592744,1718477453884,-500.0,0.00016438,2]
[329592745,1718477453895,-500.0,0.00016438,2]
[329592746,1718477453905,-504.80687186,0.00016438,2]
[329592747,1718477453917,-504.25947391,0.00016438,2]
[329592748,1718477453934,-500.0,0.00016438,2]
[329592749,1718477453945,-500.0,0.00016438,2]
[329592750,1718477453956,-500.0,0.00016438,2]
[329592751,1718477453979,-500.0,0.00016438,2]
[329592752,1718477454003,-500.0,0.00016438,2]
[329592753,1718477454021,-500.0,0.00016438,2]
[329592754,1718477454047,-500.0,0.00016438,2]
[329592755,1718477454066,-500.0,0.00016438,2]
[329592756,1718477454077,-500.0,0.00016438,2]
[329592757,1718477454109,-282.83811434,0.00016438,2]
[329592758,1718477454137,-500.0,0.00016438,2]
[329592759,1718477454156,-500.0,0.00016438,2]
[329592760,1718477454169,-500.0,0.00016438,2]
[329592761,1718477454184,-500.0,0.00016438,2]
[329592762,1718477454200,-500.0,0.00016438,2]
[329592763,1718477454214,-500.0,0.00016438,2]
[329592764,1718477454227,-500.0,0.00016438,2]
[329592765,1718477454238,-500.0,0.00016438,2]
[329592766,1718477454249,-443.51637522,0.00016438,2]
[329592767,1718477454261,-500.0,0.00016438,2]
[329592768,1718477454277,-526.85006642,0.00016438,2]
[329592769,1718477454297,-500.0,0.00016438,2]
[329592770,1718477454308,-500.0,0.00016438,2]
[329592771,1718477454328,-504.20698009,0.00016438,2]
[329592772,1718477454347,-500.0,0.00016438,2]
[329592773,1718477454362,-500.0,0.00016438,2]
[329592774,1718477454373,-500.0,0.00016438,2]
[329592775,1718477454388,-500.0,0.00016438,2]
[329592776,1718477454402,-500.0,0.00016438,2]
[329592777,1718477454417,-500.0,0.00016438,2]
[329592778,1718477454437,-464.32304756,0.00016438,2]
[329592779,1718477454457,-156.27991408,0.00016438,2]
[329592780,1718477454468,-500.0,0.00016438,2]
[329592781,1718477454486,-168.543825,0.00016438,2]
[329592782,1718477454496,-168.543825,0.00016438,2]
[329592783,1718477454521,-168.543825,0.00016438,2]
[329592784,1718477454538,-168.543825,0.00016438,2]
[329592785,1718477454553,-168.543825,0.00016438,2]
[329592786,1718477454574,-168.543825,0.00016438,2]
[329592787,1718477454589,-168.543825,0.00016438,2]
[329592788,1718477454605,-168.543829,0.00016438,2]
[329592789,1718477454616,-351.304748,0.00016438,2]
[329592790,1718477454630,-502.18712384,0.00016438,2]
[329592791,1718477454653,-500.0,0.00016438,2]
[329592792,1718477454668,-523.81794565,0.00016438,2]
[329592793,1718477454712,-500.0,0.00016438,2]
[329592794,1718477454723,-166.40338092,0.00016438,2]
[329592795,1718477454756,-500.0,0.00016438,2]
[329592796,1718477454768,-500.0,0.00016438,2]
[329592797,1718477454780,-501.72962308,0.00016438,2]
[329592798,1718477454793,-623.84762386,0.00016438,2]
[329592799,1718477454806,-246.572714,0.00016438,2]
[329592800,1718477454817,-500.0,0.00016438,2]
[329592801,1718477454836,-500.0,0.00016438,2]
[329592802,1718477454868,-500.0,0.00016438,2]
[329592803,1718477454881,-183.63434371,0.00016438,2]
[329592804,1718477454894,-500.0,0.00016438,2]
[329592805,1718477454916,-500.0,0.00016438,2]
[329592806,1718477454929,-165.60595172,0.00016438,2]
[329592807,1718477454950,-500.0,0.00016438,2]
[329592808,1718477454983,-500.92770484,0.00016438,2]
[329592809,1718477454995,-500.0,0.00016438,2]
[329592811,1718477455035,-500.0,0.00016438,2]
[329592813,1718477455059,-503.74567156,0.00016438,2]
[329592815,1718477455078,-500.0,0.00016438,2]
[329592816,1718477455091,-643.93586001,0.00016438,2]
[329592817,1718477455103,-500.0,0.00016438,2]
[329592818,1718477455116,-500.0,0.00016438,2]
[329592819,1718477455127,-191.29156839,0.00016438,2]
[329592820,1718477455140,-475.80295938,0.00016438,2]
[329592821,1718477455152,-500.0,0.00016438,2]
[329592822,1718477455164,-602.78809942,0.00016438,2]
[329592823,1718477455174,-624.66220969,0.00016438,2]
[329592824,1718477455191,-577.66149049,0.00016438,2]
[329592825,1718477455201,-500.0,0.00016438,2]
[329592826,1718477455212,-500.0,0.00016438,2]
[329592827,1718477455223,-500.0,0.00016438,2]
[329592829,1718477455242,-500.0,0.00016438,2]
[329592831,1718477455253,-500.0,0.00016438,2]
[329592833,1718477455264,-500.0,0.00016438,2]
[329592834,1718477455276,-500.0,0.00016438,2]
[329592835,1718477455287,-356.46094243,0.00016438,2]
[329592836,1718477455299,-500.0,0.00016438,2]
[329592837,1718477455333,-500.0,0.00016438,2]
[329592839,1718477455375,-500.0,0.00016438,2]
[329592840,1718477455404,-500.0,0.00016438,2]
[329592841,1718477455418,-500.0,0.00016438,2]
[329592842,1718477455431,-525.7100321,0.00016438,2]
[329592843,1718477455448,-500.0,0.00016438,2]
[329592844,1718477455460,-500.0,0.00016438,2]
[329592845,1718477455496,-500.0,0.00016438,2]
[329592846,1718477455540,-500.0,0.00016438,2]
[329592847,1718477455552,-500.0,0.00016438,2]
[329592848,1718477455562,-500.0,0.00016438,2]
[329592849,1718477455575,-500.0,0.00016438,2]
[329592850,1718477455599,-500.0,0.00016438,2]
[329592851,1718477455632,-500.0,0.00016438,2]
[329592852,1718477455647,-500.0,0.00016438,2]
[329592853,1718477455671,-500.0,0.00016438,2]
[329592854,1718477455682,-500.0,0.00016438,2]
[329592855,1718477455693,-500.0,0.00016438,2]
[329592856,1718477455712,-500.0,0.00016438,2]
[329592857,1718477455753,-500.0,0.00016438,2]
[329592858,1718477455767,-500.0,0.00016438,2]
[329592859,1718477455789,-500.0,0.00016438,2]
[329592860,1718477455804,-500.0,0.00016438,2]
[329592861,1718477455827,-500.0,0.00016438,2]
[329592862,1718477455858,-500.0,0.00016438,2]
[329592863,1718477455869,-500.0,0.00016438,2]
[329592864,1718477455881,-500.0,0.00016438,2]
[329592865,1718477455892,-500.0,0.00016438,2]
[329592866,1718477455904,-500.0,0.00016438,2]
[329592867,1718477455920,-500.0,0.00016438,2]
[329592869,1718477455931,-500.0,0.00016438,2]
[329592870,1718477455950,-500.0,0.00016438,2]
[329592871,1718477455963,-500.0,0.00016438,2]
[329592872,1718477455978,-500.0,0.00016438,2]
[329592873,1718477455997,-500.0,0.00016438,2]
[329592874,1718477456039,-500.0,0.00016438,2]
[329592875,1718477456062,-500.0,0.00016438,2]
[329592876,1718477456081,-500.0,0.00016438,2]
[329592877,1718477456112,-500.0,0.00016438,2]
[329592878,1718477456152,-500.0,0.00016438,2]
[329592879,1718477456172,-500.0,0.00016438,2]
[329592880,1718477456216,-500.0,0.00016438,2]
[329592881,1718477456240,-500.0,0.00016438,2]
[329592882,1718477456258,-500.0,0.00016438,2]
[329592883,1718477456292,-500.0,0.00016438,4]
[329592884,1718477456304,-587.66692722,0.00016438,2]
[329592885,1718477456322,-500.0,0.00016438,2]
[329592886,1718477456337,-500.0,0.00016438,2]
[329592887,1718477456351,-500.0,0.00016438,2]
[329592888,1718477456378,-500.0,0.00016438,2]
[329592889,1718477456399,-500.0,0.00016438,2]
[329592890,1718477456415,-500.0,0.00016438,2]
[329592891,1718477456442,-500.0,0.00016438,2]
[329592892,1718477456457,-500.0,0.00016438,2]
[329592893,1718477456497,-500.0,0.00016438,2]
[329592894,1718477456509,-500.0,0.00016438,2]
[329592895,1718477456522,-1811.41,0.00016438,2]
[329592896,1718477456534,-500.0,0.00016438,2]
[329592897,1718477456552,-500.0,0.00016438,2]
[329592898,1718477456565,-500.0,0.00016438,2]
[329592899,1718477456578,-500.0,0.00016438,2]
[329592900,1718477456603,-500.0,0.00016438,2]
[329592901,1718477456622,-500.0,0.00016438,2]
[329592902,1718477456634,-500.0,0.00016438,2]
[329592903,1718477456746,-401.720488,0.00016438,2]
[329592904,1718477456802,-401.720488,0.00016438,2]
[329592905,1718477456828,-401.720488,0.00016438,2]
[329592906,1718477456871,-401.720488,0.00016438,2]
[329592907,1718477456896,-401.720488,0.00016438,2]
[329592908,1718477456908,-401.720488,0.00016438,2]
[329592909,1718477456921,-401.720488,0.00016438,2]
[329592910,1718477456934,-401.720498,0.00016438,2]
[329592911,1718477456946,-500.0,0.00016438,2]
[329592912,1718477456963,-500.0,0.00016438,2]
[329592913,1718477456975,-500.0,0.00016438,2]
[329592914,1718477456986,-500.0,0.00016438,2]
[329592915,1718477457006,-288.0,0.00016438,2]
[329592916,1718477457025,-250.0,0.00016438,2]
[329592917,1718477457057,-500.0,0.00016438,2]
[329592918,1718477457076,-500.0,0.00016438,2]
[329592919,1718477457086,-500.0,0.00016438,2]
[329592920,1718477457098,-2780.58,0.00016438,2]
[329592921,1718477457109,-472.77300943,0.00016438,2]
[329592922,1718477457130,-500.0,0.00016438,2]
[329592923,1718477457140,-500.0,0.00016438,2]
[329592924,1718477457152,-610.94275831,0.00016438,2]
[329592925,1718477457169,-500.0,0.00016438,2]
[329592926,1718477457191,-500.0,0.00016438,2]
[329592927,1718477457207,-500.0,0.00016438,2]
[329592928,1718477457218,-151.0,0.00016438,2]
[329592929,1718477457232,-151.0,0.00016438,2]
[329592930,1718477457246,-151.0,0.00016438,2]
[329592931,1718477457256,-500.0,0.00016438,2]
[329592932,1718477457270,-500.0,0.00016438,2]
[329592933,1718477457283,-500.0,0.00016438,2]
[329592934,1718477457296,-500.0,0.00016438,2]
[329592935,1718477457307,-500.0,0.00016438,2]
[329592936,1718477457329,-500.0,0.00016438,2]
[329592937,1718477457344,-500.0,0.00016438,2]
[329592938,1718477457359,-500.0,0.00016438,2]
[329592939,1718477457371,-500.0,0.00016438,2]
[329592940,1718477457382,-508.45056929,0.00016438,2]
[329592941,1718477457396,-500.0,0.00016438,2]
[329592942,1718477457417,-500.0,0.00016438,2]
[329592943,1718477457428,-500.0,0.00016438,2]
[329592944,1718477457444,-500.0,0.00016438,2]
[329592945,1718477457458,-500.0,0.00016438,2]
[329592946,1718477457470,-504.6858302,0.00016438,2]
[329592947,1718477457484,-372.91872278,0.00016438,2]
[329592948,1718477457497,-500.0,0.00016438,2]
[329592949,1718477457511,-500.0,0.00016438,2]
[329592950,1718477457521,-500.0,0.00016438,2]
[329592951,1718477457534,-500.0,0.00016438,2]
[329592952,1718477457554,-500.0,0.00016438,2]
[329592953,1718477457568,-500.0,0.00016438,2]
[329592954,1718477457578,-500.0,0.00016438,2]
[329592955,1718477457599,-500.0,0.00016438,2]
[329592956,1718477457613,-581.40954012,0.00016438,2]
[329592957,1718477457624,-500.0,0.00016438,2]
[329592958,1718477457648,-500.0,0.00016438,2]
[329592959,1718477457662,-500.0,0.00016438,2]
[329592960,1718477457673,-1049.26,0.00016438,2]
[329592961,1718477457684,-500.0,0.00016438,2]
[329592962,1718477457694,-500.0,0.00016438,2]
[329592963,1718477457717,-500.0,0.00016438,2]
[329592964,1718477457729,-500.0,0.00016438,2]
[329592965,1718477457762,-500.0,0.00016438,2]
[329592966,1718477457784,-500.0,0.00016438,2]
[329592967,1718477457809,-167.913483,0.00016438,2]
[329592968,1718477457823,-500.0,0.00016438,2]
[329592969,1718477457874,-167.913483,0.00016438,2]
[329592970,1718477457889,-500.0,0.00016438,2]
[329592971,1718477457904,-167.913483,0.00016438,2]
[329592972,1718477457943,-500.0,0.00016438,2]
[329592973,1718477457963,-167.913483,0.00016438,2]
[329592974,1718477457974,-167.913483,0.00016438,2]
[329592975,1718477457985,-612.6631524,0.00016438,2]
[329592976,1718477458027,-167.913481,0.00016438,2]
[329592977,1718477458041,-500.0,0.00016438,2]
[329592978,1718477458055,-506.90837901,0.00016438,2]
[329592979,1718477458077,-500.0,0.00016438,2]
[329592980,1718477458108,-318.32601055,0.00016438,2]
[329592981,1718477458126,-831.01,0.00016438,2]
[329592982,1718477458145,-500.0,0.00016438,2]
[329592983,1718477458182,-831.01,0.00016438,2]
[329592984,1718477458204,-831.01,0.00016438,2]
[329592985,1718477458225,-831.01,0.00016438,2]
[329592986,1718477458237,-831.01,0.00016438,2]
[329592987,1718477458258,-831.01,0.00016438,2]
[329592988,1718477458281,-831.01,0.00016438,2]
[329592989,1718477458305,-831.01,0.00016438,2]
[329592990,1718477458334,-831.01,0.00016438,2]
[329592991,1718477458346,-831.01,0.00016438,2]
[329592992,1718477458369,-831.01,0.00016438,2]
[329592993,1718477458380,-500.0,0.00016438,2]
[329592994,1718477458392,-500.0,0.00016438,2]
[329592995,1718477458403,-500.0,0.00016438,2]
[329592996,1718477458417,-500.0,0.00016438,2]
[329592997,1718477458435,-500.0,0.00016438,2]
[329592998,1718477458446,-489.74409388,0.00016438,2]
[329592999,1718477458456,-500.0,0.00016438,2]
[329593000,1718477458467,-390.5733644,0.00016438,2]
[329593001,1718477458478,-500.0,0.00016438,2]
[329593002,1718477458496,-500.0,0.00016438,2]
[329593003,1718477458507,-872.04,0.00016438,2]
[329593004,1718477458519,-296.04797721,0.00016438,2]
[329593005,1718477458532,-500.0,0.00016438,2]
[329593006,1718477458542,-500.0,0.00016438,2]
[329593007,1718477458558,-500.0,0.00016438,2]
[329593008,1718477458573,-500.0,0.00016438,2]
[329593009,1718477458587,-500.0,0.00016438,2]
[329593010,1718477458605,-500.0,0.00016438,2]
[329593011,1718477458616,-436.18131857,0.00016438,2]
[329593012,1718477458631,-500.0,0.00016438,2]
[329593013,1718477458647,-500.0,0.00016438,2]
[329593014,1718477458661,-858.77,0.00016438,2]
[329593015,1718477458675,-500.0,0.00016438,2]
[329593016,1718477458689,-500.0,0.00016438,2]
[329593017,1718477458700,-500.0,0.00016438,2]
[329593018,1718477458714,-576.84976404,0.00016438,2]
[329593019,1718477458733,-151.0,0.00016438,2]
[329593020,1718477458752,-151.0,0.00016438,2]
[329593021,1718477458768,-151.0,0.00016438,2]
[329593022,1718477458780,-151.0,0.00016438,2]
[329593023,1718477458793,-500.0,0.00016438,2]
[329593024,1718477458810,-500.0,0.00016438,2]
[329593025,1718477458822,-500.0,0.00016438,2]
[329593026,1718477458843,-988.39,0.00016438,2]
[329593027,1718477458878,-500.0,0.00016438,2]
[329593028,1718477458890,-2575.75,0.00016438,2]
[329593029,1718477458908,-500.0,0.00016438,2]
[329593030,1718477458923,-500.0,0.00016438,2]
[329593031,1718477458944,-500.0,0.00016438,2]
[329593032,1718477458955,-500.0,0.00016438,2]
[329593033,1718477458966,-500.0,0.00016438,2]
[329593034,1718477458976,-2718.86,0.00016438,2]
[329593035,1718477458988,-500.0,0.00016438,2]
[329593036,1718477458998,-500.0,0.00016438,2]
[329593037,1718477459014,-500.0,0.00016438,2]
[329593038,1718477459025,-500.0,0.00016438,2]
[329593039,1718477459036,-2621.48,0.00016438,2]
[329593040,1718477459046,-1625.35,0.00016438,2]
[329593041,1718477459057,-500.0,0.00016438,2]
[329593042,1718477459074,-1018.37,0.00016438,2]
[329593043,1718477459088,-500.0,0.00016438,2]
[329593044,1718477459102,-500.0,0.00016438,2]
[329593045,1718477459118,-500.0,0.00016438,2]
[329593046,1718477459140,-500.0,0.00016438,2]